Cogmind - Beta 11 X6 @@@ ROGUE MODE // 2021.07.18 @ 06:32:21 Player: weirdfoe Result: Self-destructed Performance ------------- Evolutions (1) 500 Regions Visited (3) 600 Robots Destroyed (30) 150 Value Destroyed (584) 584 Prototype IDs (0) 0 Alien Tech Used (0) 0 Bonus (275) 275 TOTAL SCORE: 2109 Bonus ------- Follower Combat Kills 275 Cogmind --------- Core Integrity 351/400 Matter 275/300 Energy 325/325 System Corruption 0% Temperature Cool (0) Movement Treading (165) Location -9/Materials Parts ------- > --- POWER (1) -------- Light Ion Engine > --- PROPULSION (3) --- Light Treads Armored Treads > --- UTILITY (3) ------ Large Storage Unit Compact Battery Light Armor Plating > --- WEAPON (2) ------- Light Assault Rifle Light Cannon > --- INVENTORY (15) --- Aluminum Leg Aluminum Leg Aluminum Leg Carbon-fiber Leg Medium Storage Unit Assault Rifle Datajack Heavy Flail Peak State ------------ > --- POWER ------------ Light Ion Engine > --- PROPULSION ------- Light Treads Armored Treads > --- UTILITY ---------- Large Storage Unit Compact Battery Hacking Suite > --- WEAPON ----------- Light Assault Rifle Light Cannon > --- INVENTORY -------- Aluminum Leg Aluminum Leg Aluminum Leg Carbon-fiber Leg Medium Storage Unit Assault Rifle Datajack Heavy Flail [Rating: 15] Favorites ----------- Power Ion Engine Engine Ion Engine Propulsion Light Treads Treads Light Treads Utility Hacking Suite Storage Large Storage Unit Hackware Hacking Suite Protection Light Armor Plating Weapon Light Assault Rifle Ballistic Gun Light Assault Rifle Ballistic Cannon Light Cannon Build | -11 -10 -10 -9 ------- Run | Scr Mat Min Mat Slots Evolved 2 | . . . 2 Power . | . . . . Propulsion 1 | . . . 1 Utility 1 | . . . 1 Weapon . | . . . . Parts Attached 16 | 6 4 3 3 Power 3 | 1 . 1 1 Engine 3 | 1 . 1 1 Core . | . . . . Reactor . | . . . . Propulsion 3 | 2 . 1 . Treads 3 | 2 . 1 . Leg . | . . . . Wheel . | . . . . Hover . | . . . . Flight . | . . . . Utility 6 | 1 3 . 2 Device . | . . . . Storage 4 | 1 2 . 1 Processor . | . . . . Hackware 1 | . 1 . . Protection 1 | . . . 1 Artifact . | . . . . Weapon 4 | 2 1 1 . Energy Gun . | . . . . Energy Cannon . | . . . . Ballistic Gun 3 | 2 . 1 . Ballistic Cannon 1 | . 1 . . Launcher . | . . . . Special Weapon . | . . . . Impact Weapon . | . . . . Slashing Weapon . | . . . . Piercing Weapon . | . . . . Special Melee Weapon . | . . . . Unidentified Prototypes . | . . . . Parts Lost 1 | . . . 1 Power 1 | . . . 1 Propulsion . | . . . . Utility . | . . . . Weapon . | . . . . Highest Loss Streak 1 | . . . 1 Average Slot Usage (%) 97 | . 95 100 80 Engine 13 | . 14 14 10 Treads 27 | . 28 28 22 Storage 14 | . 14 14 15 Hackware 12 | . 9 14 7 Ballistic Gun 15 | . 25 14 11 Ballistic Cannon 11 | . 2 14 11 Naked Turns . | . . . . Heaviest Build 31 | 13 29 29 31 Greatest Support 40 | 40 40 40 40 Greatest Overweight (x) 1 | 1 . . . Average Overweight (x) . | . . . . Largest Inventory Capacity 15 | 8 15 15 15 Average Capacity 14 | 7 12 15 15 Most Carried 12 | 4 7 12 10 Average Carried 8 | 2 5 9 9 Final Capacity 15 | 8 15 15 15 Final Carried 10 | 4 7 10 8 Class Distribution -------------------- 100% | Mutant Dominant Class ---------------- Mutant | -10/Materials Mutant | -10/Mines Mutant | -9/Materials Resources | -11 -10 -10 -9 ----------- Run | Scr Mat Min Mat Matter Collected 738 | 215 183 310 30 Remotely . | . . . . Salvage Created 939 | . 227 708 4 Parts 62 | . 15 47 . Haulers Intercepted . | . . . . Recyclers Shooed 3 | . . 3 . Parts Field Recycled . | . . . . Retrieved Matter . | . . . . Parts Self-Destructed . | . . . . Prevented . | . . . . Kills | -11 -10 -10 -9 ------- Run | Scr Mat Min Mat Combat Hostiles Destroyed 17 | . 6 11 . Guns 8 | . 6 2 . Cannons 9 | . . 9 . Classes Destroyed 7 | . 4 3 . Worker 3 | . 1 2 . Builder 1 | . . 1 . Tunneler 3 | . . 3 . Recycler 5 | . . 5 . Operator 1 | . 1 . . Swarmer 6 | . 3 3 . Grunt 11 | . 3 8 . Best Kill Streak 10 | . 4 10 . Combat Bots Only 3 | . 3 3 . Max Kills in Single Turn 1 | . 1 1 . Gunslinging . | . . . . Exploded . | . . . . Melee . | . . . . Uniques/NPCs Destroyed . | . . . . Combat | -11 -10 -10 -9 -------- Run | Scr Mat Min Mat Damage Taken 826 | . 268 409 149 Core 159 | . 35 75 49 Absorbed by Shields . | . . . . Core Remaining (%) 78 | 100 . 56 . Volleys Fired 86 | . 29 52 5 Largest 2 | . 2 2 2 Hottest 55 | . 55 55 55 Shots Fired 172 | . 58 104 10 Gun 113 | . 56 52 5 Cannon 59 | . 2 52 5 Launcher . | . . . . Special . | . . . . Kinetic 172 | . 58 104 10 Thermal . | . . . . Explosive . | . . . . Electromagnetic . | . . . . Robot Hit Streak 10 | . 9 10 2 Robot Miss Streak 3 | . 3 3 2 Penetration Max . | . . . . Secondary Targets . | . . . . Shots Hit Robots 114 | . 39 70 5 Core Hits 50 | . 14 35 1 Critical Kills 1 | . 1 . . Critical Parts Destroyed . | . . . . Critical Strikes 4 | . 1 3 . Destroy 1 | . 1 . . Blast 3 | . . 3 . Melee Attacks . | . . . . Impact . | . . . . Slashing . | . . . . Piercing . | . . . . Sneak Attacks . | . . . . Combat Hostiles . | . . . . Follow-up Attacks . | . . . . Damage Inflicted 1390 | . 409 957 24 Guns 655 | . 392 239 24 Cannons 735 | . 17 718 . Explosions . | . . . . Melee . | . . . . Ramming . | . . . . Kinetic 1390 | . 409 957 24 Thermal . | . . . . Explosive . | . . . . Electromagnetic . | . . . . Impact . | . . . . Slashing . | . . . . Piercing . | . . . . Highest Corruption . | . . . . Average Corruption . | . . . . Corruption Purged . | . . . . Overload Shots . | . . . . Overflow Damage 24 | . . 24 . Projectiles 24 | . . 24 . Explosions . | . . . . Melee . | . . . . Knockbacks 11 | . . 11 . Impact . | . . . . Kinetic 10 | . . 10 . Secondary 1 | . . 1 . Self-Inflicted Damage . | . . . . Shots . | . . . . Rammed . | . . . . Targets Rammed . | . . . . Kicked . | . . . . Crushed . | . . . . Highest Temperature 37 | . 14 37 28 Average Temperature 12 | . 7 13 12 Received Heat Transfer 309 | . 114 186 9 Siege Activations . | . . . . Robots Corrupted . | . . . . Combat Hostiles . | . . . . Parts Fried . | . . . . Impact Corruptions . | . . . . Robots Melted . | . . . . Combat Hostiles . | . . . . Parts Melted . | . . . . Heat Transferred . | . . . . Parts Sabotaged . | . . . . Parts Stolen . | . . . . Parts Stripped . | . . . . Power Chain Reactions . | . . . . Missiles Intercepted . | . . . . Alert | -11 -10 -10 -9 ------- Run | Scr Mat Min Mat Peak Influence 347 | . 213 347 145 Initial 82 | . . 82 57 Average 130 | . 117 145 78 Maximum Alert Level 1 | . 1 1 . Low Security (%) 75 | 100 77 72 100 Level 1 24 | . 22 27 . Level 2 . | . . . . Level 3 . | . . . . Level 4 . | . . . . Level 5 . | . . . . High Security . | . . . . Max Security . | . . . . Squads Dispatched 6 | . 1 3 2 Investigation 2 | . . 2 . Extermination . | . . . . Reinforcement 3 | . 1 . 2 Assault 1 | . . 1 . Garrison . | . . . . Intercept . | . . . . Construction Impeded . | . . . . Haulers Reinforced . | . . . . Active Scanning Responses . | . . . . Cargo Convoy Interrupts . | . . . . Stealth | -11 -10 -10 -9 --------- Run | Scr Mat Min Mat Distress Signals 1 | . 1 . . Communications Jammed . | . . . . Distress Signals . | . . . . Times Spotted 37 | . 10 17 10 Peak Tracking Total 6 | . 4 4 6 Tactical Retreats . | . . . . Traps | -11 -10 -10 -9 ------- Run | Scr Mat Min Mat Traps Triggered . | . . . . Indirectly . | . . . . Trap Hack Attempts . | . . . . Triggered . | . . . . Disarmed . | . . . . Reprogrammed . | . . . . Reused . | . . . . Traps Extracted . | . . . . Installed . | . . . . Triggered . | . . . . Machines | -11 -10 -10 -9 ---------- Run | Scr Mat Min Mat Machines Disabled 1 | . . . 1 Max in Single Turn 1 | . . . 1 Machines Sabotaged . | . . . . Garrisons Compromised . | . . . . Overloaded Fab Kills . | . . . . Fab Network Shutdowns . | . . . . Hacking | -11 -10 -10 -9 --------- Run | Scr Mat Min Mat Machines Accessed 3 | . 1 2 . Terminals 2 | . 1 1 . Fabricators . | . . . . Repair Stations . | . . . . Recycling Units . | . . . . Scanalyzers . | . . . . Garrison Access . | . . . . Total Hacks 5 | . 1 4 . Successful 3 | . 1 2 . Failed 2 | . . 2 . Catastrophic 1 | . . 1 . Database Lockouts . | . . . . Manual 4 | . 1 3 . Terminals 4 | . 1 3 . Fabricators . | . . . . Repair Stations . | . . . . Recycling Units . | . . . . Scanalyzers . | . . . . Garrison Access . | . . . . Terminal Hacks 3 | . 1 2 . Open Door 1 | . . 1 . Branch Access Points 2 | . 1 1 . Fabricator Hacks . | . . . . Repair Station Hacks . | . . . . Recycling Unit Hacks . | . . . . Scanalyzer . | . . . . Garrison Access Hacks . | . . . . Unauthorized Hacks . | . . . . Terminals . | . . . . Fabricators . | . . . . Repair Stations . | . . . . Recycling Units . | . . . . Scanalyzers . | . . . . Garrison Access . | . . . . Data Cores Recovered . | . . . . Used . | . . . . Hacking Detections 1 | . . 1 . Full Trace Events 1 | . . 1 . Feedback Events . | . . . . Feedback Blocked . | . . . . Robot Schematics Acquired . | . . . . Robots Built . | . . . . Matter . | . . . . Time . | . . . . Total Robot Build Rating . | . . . . Part Schematics Acquired . | . . . . Parts Built . | . . . . Matter . | . . . . Time . | . . . . Total Part Build Rating . | . . . . Parts Repaired . | . . . . Time . | . . . . Parts Recycled . | . . . . Recycled Matter . | . . . . Retrieved Matter . | . . . . Retrieved Components . | . . . . Parts Scanalyzed . | . . . . Part Schematics Acquired . | . . . . Parts Damaged . | . . . . Bothacking | -11 -10 -10 -9 ------------ Run | Scr Mat Min Mat Used RIF Installer . | . . . . Robots Hacked . | . . . . Non-combat . | . . . . Combat . | . . . . Robot Hacks Applied . | . . . . Relay Couplers Released . | . . . . Robots Rewired . | . . . . Allies Hacked . | . . . . Hacks Repelled . | . . . . Allies | -11 -10 -10 -9 -------- Run | Scr Mat Min Mat Total Allies 4 | . . 4 . Largest Group 4 | . . 4 3 Highest-Rated Group 71 | . . 71 55 Highest-Rated Ally 31 | . . 31 31 Total Orders . | . . . . Ally Attacks 49 | . . 33 16 Total Damage 643 | . . 389 254 Kills 11 | . . 7 4 Allies Corrupted . | . . . . Allies Melted 1 | . . 1 . Intel | -11 -10 -10 -9 ------- Run | Scr Mat Min Mat Robot Analysis Total . | . . . . Derelict Logs Recovered 1 | . . 1 . Drone Launches . | . . . . Drone Recoveries . | . . . . Exploration | -11 -10 -10 -9 ------------- Run | Scr Mat Min Mat Turns Passed 2128 | 79 380 1528 141 Spaces Moved 1104 | 44 175 816 69 Core 4 | 4 . . . Treads 1100 | 40 175 816 69 Legs . | . . . . Wheels . | . . . . Hover . | . . . . Flight . | . . . . Fastest Speed 50 | 50 160 160 165 Average Speed 162 | 153 160 163 165 Slowest Speed 165 | 160 160 165 165 Overloaded Moves . | . . . . Propulsion Burnouts . | . . . . Robots Hopped . | . . . . Cave-ins Triggered . | . . . . Exploration Rate (%) 37 | 5 33 99 13 Regions Visited 3 Branch Regions 1 Pre-discovered Areas . | . . . . Known Exits Taken 1 | . 1 . . Unknown Exits Taken 2 | 1 . 1 . Scrap Searched 1 | . . 1 . Spaces Dug . | . . . . Terrain Destroyed . | . . . . Melee . | . . . . Projectile . | . . . . AOE . | . . . . Terrain Rammed . | . . . . Walls Destroyed . | . . . . Machines Disabled . | . . . . Actions | -11 -10 -10 -9 --------- Run | Scr Mat Min Mat Total 1279 | 53 222 917 87 Wait 58 | . 11 39 8 Move 1101 | 43 174 815 69 Hop . | . . . . Pick Up 10 | 4 1 4 1 Fast Attach 10 | 6 3 1 . Attach 3 | . . . 3 Detach 2 | . 2 . . Swap 3 | . 1 2 . Drop 6 | . 1 4 1 Fire 86 | . 29 52 5 Melee . | . . . . Ram . | . . . . Kick . | . . . . Crush . | . . . . Escape Stasis . | . . . . Rewire . | . . . . Trap . | . . . . Miscellaneous . | . . . . Route ------- -11/Scrapyard -10/Materials (discovered 3 exits: [*Mat] / *Min x2) -10/Mines (discovered 2 exits: [*Mat x2]) -9/Materials (discovered 1 exit: Min) History --------- Turn | Location | Event 19 | -11/Scrapyard | Discovered new exit (range 15) 80 | -11/Scrapyard | Entered Materials 150 | -10/Materials | Identified exit to Mines 303 | -10/Materials | Build established: Mutant 312 | -10/Materials | Discovered new exit (range 5) 460 | -10/Materials | Entered Mines 498 | -10/Mines | Met a Derelict bent on vengeance 516 | -10/Mines | Discovered new exit (range 4) 553 | -10/Mines | Discovered new exit (range 11) 945 | -10/Mines | Met a Derelict shopkeep closing up shop 1380 | -10/Mines | Assisted by bots powering up and referring to "LRC-V3" 1868 | -10/Mines | Met a Derelict testing a Signal Generator 1988 | -10/Mines | Entered Materials 1988 | -9/Materials | Accompanied by 3 allies 1988 | -9/Materials | Evolved 2 slots: Propulsion x1, Utility x1 1989 | -9/Materials | Identified exit to Mines 2129 | -9/Materials | Self-destructed Last Messages --------------- 02076_ R-06 Scavenger collects Beam Rifle. 02077_ K-01 Serf collects debris. 02077_ Trooper 1b destroyed. 02080_ K-01 Serf collects debris. 02082_ Acquired Lgt. Armor Plating. 02083_ Acquired 20 matter. 02083_ K-01 Serf collects debris. 02089_ Discarded Hacking Suite. 02090_ S-10 Pest destroyed. 02091_ Matter Filter disabled. 02092_ S-10 Pest destroyed. 02098_ 4I-TSG(g) suffers critical hit (Burn). 02098_ S-10 Pest destroyed. 02099_ Acquired 10 matter. 02101_ 4I-TSG(g) destroyed. 02103_ Y-45 Defender destroyed. 02107_ K-01 Serf collects debris. 02123_ R-06 Scavenger collects Imp. Heat Sink. 02124_ R-06 Scavenger collects Ion Engine. 02126_ R-06 Scavenger collects Hvy. Assault Rifle. Map ----- +----------------------------------------------------+ | ?????????????????????????????????????????????????? | | ?????????????????????????????????????????????????? | | ?????????????????????????????????????????????????? | | ?????????????????????????????????????????????????? | | ?????????????????????????????????????????????????? | | ?????????????????????????????????????????????????? | | ?????????????????????????????????????????????????? | | ?????????????????????????????????????????????????? | | ???????????????????????######????????????????????? | | ??????????????????????? #????????????????????? | | ??????????????????????? #????????????????????? | | ??????????????????????? ????????????????????? | | ??????????????????????? ?????????????????????? | | ??????????????????????? ?????????????????????? | | ???????????????????????# #?????????????????????? | | ???????????????????????# w#?????????????????????? | | ???????????????????????# % #?????????????????????? | | ???????????????????????# #?????????????????????? | | ??????????????????????## ##???????????????????? | | ????????############### k #??########????????# | | ??????? #### """ #????????# | | ??????? + "Y" #????????# | | ??????? !%%%!#??# #????????# | | ??????????????#+#######= %r[#??# #????????# | | ?????????????????????####r####??? #????????# | | ?????????????????????# *=@=[ #????? #????????# | | ?????????????????????# %=%*% ########+#????????+ | | ?????????????????????# *==%= + #????????# | | ?????????????????????#""""% ######## #????????# | | ?????????????????????#""""" #??????# #?#+#???## | | ?????????????????????#""""" #??????# ### ##### | | ?????????????????????#""""" #??????# | | ?????????????????????#""""" ######## T | | ???????????????????????"""" # + | | ???????????????????????"""" # """ # ######### | | ????????????????????????? # """ # #???????###/ | | ?????????????????????????##### """ ?# #???????? | | ?????????????????????????????# ?# #?????? | | ?????????????????????????????# ??# #?????# | | ?????????????????????????????#####??# ?????+ """ | | ?????????????????????????????????????##?????# """ | | ????????????????????????????????????????????# """ | | ????????????????????????????????????????????# | | ????????????????????????????????????????????# ? | | ????????????????????????????????????????????##??## | | | | | | | | | | | +----------------------------------------------------+ Best States ------------- Heat Dissipation 28 Energy Generation 10 Energy Capacity 325 Matter Stores 300 Matter Capacity 300 Sight Range 16 Terrain Scan Density 10 Armor Coverage 150 Evasion (%) 40 Recoil Reduction 2 Offensive Hacking 10 Item Schematics ----------------- None Robot Schematics ------------------ None Fabricated ------------ Nothing Alien Tech Used ----------------- None Achievements -------------- None Challenges ------------ None Game ------ Seed PointAntimissileAutocannon Manual? 0 Play Time 00:13:25 Cumulative 26.4 hours Start 2021.07.18 @ 06:19:51 End 2021.07.18 @ 06:32:21 Sessions 1 Manual Loads 0 Difficulty Rogue Special Mode None Game No. 76 Rogue 76 Adventurer 0 Explorer 0 Win Type - Total 0 Types 0/0/0/0/0/0/0/0/0 Lore% 30 Gallery% 35 Achievement% 24 Wizard Run 0 Options --------- ASCII 0 Keyboard 0 Movement Numpad Keybinds 0 Fullscreen 2 Font 18/TerminusBold Map View 76x50 Tactical HUD 1 Map Filters NONE Filters NONE Steam 1 RUN: ae0cf6ae-d84b-4c63-ab15-cdd5d4b5e2ef